Workbook

Sheet vypocet
B1: Výpočet odolne pricky | K1: Kontakt: fajman@fsv.cvut.cz
B2: ZADÁNÍ
B3: Rozměry pricky | F3: Plošné zatížení
B4: vyýška pricky (h) = | C4: 1.5 | D4: m | F4: Norma (kombinace) | G4: EN-CSN
B5: šířka pricky(b) = | C5: 1.2 | D5: m | F5: Zat svisle od tíhy fg = | G5: =getZatizeniTiha(C26/1000, C6, D18, GetDeska(C18,profily!A27:E30,"G"), D20, IF(C20=0,0,GetDeska(C20,profily!A27:E30,"G")), C17) -> 0.15492 | H5: kN/m
B6: vzdalenost profilu (bn) = | C6: 0.6 | D6: m | F6: Zatížení fw = | G6: 0 | H6: kN/m2
B7: celkový počet polí = | C7: =C5/C6 -> 2 | D7: ks | F7: Zatížení svisle fn= | G7: 0 | H7: kN/m2
B10: Nosná konstrukce příčky | F10: Ram konstrukce
B11: Zakladni svislý profil | C11: CW 125/50/0,6 | D11: =GetMaterial(profily!A4:O22,profily!B38:J43, C11, 1) -> DX51D | F11: Zakladni profil | G11: UW 100/40/0,6 | H11: A (x10-3 m2)= | I11: =GetAiWiIiOcel(G11,0, profily!A4:O22) -> 0.107
B12: Pridany profil , propojení | D12: 0 | F12: materiál | G12: =GetMaterial(profily!A4:O22,profily!B38:J43, G11, 1) -> DX51D | H12: I (x10-6 m4)= | I12: 0.1668
B13: ="ocel " &D11& " E(GPa), Ryd(MPa)" -> ocel DX51D E(GPa), Ryd(MPa) | C13: 210 | D13: =GetMaterial(profily!A4:O22,profily!B38:J43, C11, 3) -> 260.8695652 | H13: Wmin (x10-6 m3)= | I13: 3.336
F14: Kotveni ramu
F15: Kotva vzd. Od sloupku | G15: 0.09
B16: Desky | F16: prumer d (m)= | G16: 0.02 | H16: A (x10-3 m2)= | I16: =1000*3.14*G16*G16/4 -> 0.314
B17: jedno / oboustranné | C17: jedno | F17: delka L (m)= | G17: 0.15 | H17: Aos (x10-3 m2) = | I17: =1000*3.14*G16/2*G17 -> 4.71
B18: deska 1 a tl. (m) | C18: Torro | D18: 0.01 | F18: material kotvy= | G18: 10_9 | H18: Aot (x10-3 m2) = | I18: =1000*G16*G17 -> 3
B19: ="E(GPa), Ry(MPa)" -> E(GPa), Ry(MPa) | C19: =GetDeska(C18,profily!A27:E30,"E") -> 10 | D19: =GetDeska(C18,profily!A27:E30,"RY") -> 10 | F19: fy (Mpa)= | G19: =VLOOKUP(G18,profily!B46:H52,2,0) -> 900
B20: deska 2 a tl. (m) | C20: SDK | D20: 0.012 | F20: Beton | G20: C25/30
B21: ="E(GPa), Ry(MPa)" -> E(GPa), Ry(MPa) | C21: =IF(C20=0,0,GetDeska(C20,profily!A27:E30,"E")) -> 2.2 | D21: =IF(C20=0,0,GetDeska(C20,profily!A27:E30,"RY")) -> 5 | F21: fctk 0,05 (Mpa)= | G21: =VLOOKUP(G20,profily!B55:H60,5,0) -> 1.8 | H21: Nk=A.Ry/1,3 = (kN) Nk=Aos. 2,25.fctd/1,5 | I21: =MIN(I16*G19/1.3, I17*G21*2.25/1.5) -> 12.717
F22: fck (Mpa)= | G22: =VLOOKUP(G20,profily!B55:H60,2,0) -> 25 | H22: Vk=0,6A.Ry/1,3 = (kN) Vk=Aot. fctd/1,5 | I22: =MIN(I18*G22/1.5, 0.6*I16*G19/1.3) -> 50
B23: ="míra propojení P x D " -> míra propojení P x D | C23: 0.5
B25: Svisly profil | C25: Nosnik | D25: Deska | E25: spojení
B26: A (x10-3 m2)= | C26: =GetAiWiIiOcel(C11,C12, profily!A4:O22) -> 0.14 | D26: =GetAiIiWiDeska(C20, D18,D20,C6,C19/C21) -> 7.584 | E26: =GetAiIiWiSpoj(C26:C30, D26:D30,C17, C23,C13/C19) -> 0
B27: I (x10-6 m4)= | C27: 0.3421 | D27: 0.069008 | E27: 2.302591111
B28: Wmin (x10-6 m3)= | C28: 5.4736 | D28: 13.168 | E28: 20.764977
B29: horni | C29: -0.0625 | D29: -0.006
B30: dolni | C30: 0.0625 | D30: 0.005
B31: pomer h/t | C31: 208.3333333
B32: Ry (Mpa)= | C32: =D13 -> 260.8695652 | D32: =D19 -> 10
F33: ŘEŠENÍ
B34: Výpočet únosnosti | G34: Vyhodnocení
B35: Unosnost svislého profilu | D35: N= | E35: =-G5*C4-G7*C6 -> -0.23238 | F35: kN | G35: =IF(G4="EN-CSN","EN Mimořádná kombinace zatížení- fw+fg", "kombinace zatížení fw+fg") -> EN Mimořádná kombinace zatížení- fw+fg
D36: M= | E36: =GetMV(E35,C4,C17,C26:E26,C27:E27,C28:E28,C31,C32:D32,C13/C19) -> 4.812102498 | F36: kN/m | G36: Svislý profil
D37: Mpl= | E37: 6.717413087 | F37: kN/m | G37: fw= | H37: =GetFV(E37, E38,G6,C4,C6 ) -> 39.80689236 | I37: kN/m2
D38: V= | E38: 43.71883959 | F38: kN | G38: Reakce Vd= | H38: 17.91310156 | I38: kN
B39: Unosnost ramu | D39: M= | E39: =GetRam_MV(I11, I13, D13 ) -> 0.7567485822 | F39: kN/m | G39: rozhodujici | H39: moment
D40: V= | E40: 14.01356797 | F40: kN | G40: RAM | H40: =GetRamPosudek(H38, E40,E39,G15,C6 ) -> 1.278268433 | I40: < 1
B41: Unosnost kotvení | D41: V= | E41: =I22 -> 50 | F41: kN | H41: zesilit ram V
D42: N= | E42: =I21 -> 12.717 | F42: kN | G42: Kotveni | H42: =GetKotveniPosudek(H38, E41 ) -> 0.3582620313 | I42: < 1
H43: kotveni OK

Sheet profily
A1: Průřezové hodnoty profilů Knauf
A2: Profil | B2: material | E2: Fläche | F2: Flächenträgheitsmoment | H2: Abstand d. Schwerachse | J2: Widerstandsmoment um Achse
C3: H cm | D3: tl cm | E3: A cm² | F3: IY cm4 | G3: IZ cm4 | H3: dolni zd cm | I3: horni zh cm | J3: y - WYMAX cm3 | K3: y - WYMIN cm3 | L3: z - WYMAX cm3 | M3: z - WYMIN cm3 | N3: i (cm)
A4: CD 60/27/0,6 | B4: DX51D | C4: 6 | D4: 0.06 | E4: 0.74 | F4: 0.69 | G4: 4.39 | H4: 1.99 | I4: 2.97 | J4: =2*F4/C4 -> 0.23 | K4: =2*F4/C4 -> 0.23
A5: CW 50/50/0,6 | B5: DX51D | C5: 5 | D5: 0.06 | E5: 0.95 | F5: 4.31 | G5: 3.07 | H5: 2.41 | I5: 1.9 | J5: 1.79 | K5: 1.79 | N5: =SQRT(F5/E5) -> 2.12998641 | O5: =SQRT(G5/E5) -> 1.797659297
A6: CW 75/50/0,6 | B6: DX51D | C6: 7.5 | D6: 0.06 | E6: 1.1 | F6: 10.68 | G6: 3.54 | H6: 3.66 | I6: 1.64 | J6: 2.92 | K6: 2.92 | N6: =SQRT(F6/E6) -> 3.115941416 | O6: =SQRT(G6/E6) -> 1.793929156
A7: CW 100/50/0,6 | B7: DX51D | C7: 10 | D7: 0.06 | E7: 1.25 | F7: 20.49 | G7: 3.89 | H7: 4.91 | I7: 1.44 | J7: 4.17 | K7: 4.17 | N7: =SQRT(F7/E7) -> 4.048703496 | O7: =SQRT(G7/E7) -> 1.764086166
A8: CW 125/50/0,6 | B8: DX51D | C8: 12.5 | D8: 0.06 | E8: 1.4 | F8: 34.21 | G8: 4.17 | H8: 6.16 | I8: 1.29 | J8: 5.55 | K8: 5.55 | N8: =SQRT(F8/E8) -> 4.943249365 | O8: =SQRT(G8/E8) -> 1.725853826
A9: CW 150/50/0,6 | B9: DX51D | C9: 15 | D9: 0.06 | E9: 1.55 | F9: 52.3 | G9: 4.4 | H9: 7.41 | I9: 1.16 | J9: 7.06 | K9: 7.06 | N9: =SQRT(F9/E9) -> 5.808780895 | O9: =SQRT(G9/E9) -> 1.684847078
A10: UW 50/40/0,6 | B10: DX51D | C10: 5 | D10: 0.06 | E10: 0.77 | F10: 3.51 | G10: 1.35 | H10: 2.47 | I10: 1.22 | J10: 1.42 | K10: 1.42
A11: UW 75/40/0,6 | B11: DX51D | C11: 7.5 | D11: 0.06 | E11: 0.92 | F11: 8.65 | G11: 1.53 | H11: 3.72 | I11: 1.03 | J11: 2.33 | K11: 2.33
A12: UW 100/40/0,6 | B12: DX51D | C12: 10 | D12: 0.06 | E12: 1.07 | F12: 16.68 | G12: 1.67 | H12: 4.97 | I12: 0.88 | J12: 3.36 | K12: 3.36
A13: UA 50/40/2,0 | B13: DX51D | C13: 5 | D13: 0.2 | E13: 2.5 | F13: 10.25 | G13: 4.2 | H13: 2.34 | I13: 1.22 | J13: 4.38 | K13: 4.38 | N13: =SQRT(F13/E13) -> 2.024845673 | O13: =SQRT(G13/E13) -> 1.29614814
A14: UA 75/40/2,0 | B14: DX51D | C14: 7.5 | D14: 0.2 | E14: 3 | F14: 26.28 | G14: 4.82 | H14: 3.59 | I14: 1.02 | J14: 7.32 | K14: 7.32 | N14: =SQRT(F14/E14) -> 2.959729717 | O14: =SQRT(G14/E14) -> 1.267543556
A15: UA 100/40/2,0 | B15: DX51D | C15: 10 | D15: 0.2 | E15: 3.5 | F15: 51.66 | G15: 5.26 | H15: 4.84 | I15: 0.87 | J15: 10.67 | K15: 10.67 | N15: =SQRT(F15/E15) -> 3.841874542 | O15: =SQRT(G15/E15) -> 1.22591074
A26: Materiál | B26: g (kN/m3) | C26: sig. Max (Mpa) | D26: E1 (Gpa)
A27: VPKD | B27: 28 | C27: 15 | D27: 15
A28: Torro | B28: 12 | C28: 10 | D28: 10
A29: Cetris | B29: 14 | C29: 9 | D29: 5.7
A30: SDK | B30: 10 | C30: 5 | D30: 2.2
B33: Tabulka pevností ocelové výztuže
A35: Tabulka pevností
A36: material | B36: trida pevnosti | C36: mez kluzu (0,2) fy [MPa] | D36: navrhova pevnost fdy | E36: pevnost v tahu | F36: pevnost ve smyku | G36: E | H36: tiha | I36: beta | J36: gama
A37: ocelove vyvalky
A38: 11373-378 | B38: S235 | C38: 235 | D38: =C38/J38 -> 204.3478261 | E38: 360 | F38: =C38/SQRT(3) -> 135.6773133 | G38: 210 | H38: 78 | I38: 0.8 | J38: 1.15
A39: 11443-449 | B39: S275 | C39: 275 | D39: =C39/J39 -> 239.1304348 | E39: 430 | F39: =C39/SQRT(3) -> 158.771324 | G39: 210 | H39: 78 | I39: 0.85 | J39: 1.15
A40: 11503-523 | B40: S355 | C40: 355 | D40: =C40/J40 -> 308.6956522 | E40: 490 | F40: =C40/SQRT(3) -> 204.9593456 | G40: 210 | H40: 78 | I40: 0.9 | J40: 1.15
B41: S420 | C41: 420 | D41: =C41/J41 -> 365.2173913 | E41: 500 | G41: 210 | H41: 78 | J41: 1.15
B42: S460 | C42: 460 | D42: 400 | E42: 530 | G42: 210 | H42: 78 | J42: 1.15
A43: ocelovy plech | B43: DX51D | C43: 140-270 | D43: =300/J43 -> 260.8695652 | E43: 270-500 | F43: =D43/SQRT(3) -> 150.6131137 | G43: 210 | H43: 78 | J43: 1.15
A46: srouby | B46: 4_6 | C46: 240 | E46: 400 | H46: 1.45
B47: 4_8 | C47: 320 | E47: 400 | H47: 1.45
B48: 5_6 | C48: 300 | E48: 500 | H48: 1.45
B49: 5_8 | C49: 400 | E49: 500 | H49: 1.45
B50: 6_8 | C50: 400 | E50: 500 | H50: 1.45
B51: 8_8 | C51: 640 | E51: 800 | H51: 1.45
B52: 10_9 | C52: 900 | E52: 1000 | H52: 1.45
A54: Beton | B54: třída | C54: fck | D54: fcm | E54: fctm | F54: fctk 0,05 | G54: fctk 0,95 | H54: Trd
B55: C12/15 | C55: 12 | D55: 20 | E55: 1.6 | F55: 1.1 | G55: 2 | H55: 0.18
B56: C16/20 | C56: 16 | D56: 24 | E56: 1.9 | F56: 1.3 | G56: 2.5 | H56: 0.22
B57: C20/25 | C57: 20 | D57: 28 | E57: 2.2 | F57: 1.5 | G57: 2.9 | H57: 0.26
B58: C25/30 | C58: 25 | D58: 33 | E58: 2.6 | F58: 1.8 | G58: 3.3 | H58: 0.3
B59: C30/37 | C59: 30 | D59: 38 | E59: 2.9 | F59: 2 | G59: 3.8 | H59: 0.34
B60: C35/45 | C60: 35 | D60: 43 | E60: 3.2 | F60: 2.2 | G60: 4.2 | H60: 0.37
